bitfinex-derivatives/quotes_BTCF0:USTF0_20241009
["timestamp","ask_amount","ask_price","bid_price","bid_amount"]
[1728517439436,0.111,60718.0,60717.0,0.35966673]
[1728517441345,0.111,60718.0,60717.0,0.25830744]
[1728517442241,0.111,60718.0,60717.0,0.3571252]
[1728517443152,0.111,60718.0,60717.0,0.35729899]
[1728517444241,0.111,60718.0,60717.0,0.25848123]
[1728517446242,0.111,60718.0,60717.0,0.13038418]
[1728517446542,0.111,60718.0,60717.0,0.12759345]
[1728517446543,0.193401,60718.0,60717.0,0.12759345]
[1728517447241,0.193401,60718.0,60717.0,0.11659345]
[1728517447551,0.193401,60718.0,60717.0,0.11759345]
[1728517447743,0.193401,60718.0,60717.0,0.11359345]
[1728517448152,0.193401,60718.0,60717.0,0.11459345]
[1728517448455,0.192401,60718.0,60717.0,0.11159345]
[1728517449747,0.192401,60718.0,60717.0,0.11166516]
[1728517450052,0.553201,60718.0,60717.0,0.11466516]
[1728517455148,0.192401,60718.0,60717.0,0.11466516]
[1728517455349,0.553201,60718.0,60717.0,0.11466516]
[1728517456955,0.553201,60718.0,60717.0,0.10966516]
[1728517457157,0.553201,60718.0,60717.0,0.11366516]
[1728517457857,0.554201,60718.0,60717.0,0.11566516]
[1728517458357,0.554201,60718.0,60717.0,0.11366516]
[1728517458358,0.553201,60718.0,60717.0,0.11366516]
[1728517458553,0.553201,60718.0,60717.0,0.10866516]
[1728517458769,0.553201,60718.0,60717.0,0.11266516]
[1728517463256,0.673201,60718.0,60717.0,0.03026316]
[1728517464364,0.673201,60718.0,60717.0,0.02626316]
[1728517464554,0.673201,60718.0,60717.0,0.03026316]
[1728517465055,0.673201,60718.0,60714.0,0.08225512]
[1728517465056,1.767281,60718.0,60714.0,0.08225512]
[1728517465363,0.082405,60715.0,60714.0,0.08225512]
[1728517465556,0.192405,60715.0,60714.0,0.08225512]
[1728517466368,0.192405,60715.0,60714.0,0.11526375]
[1728517467656,0.553205,60715.0,60714.0,0.11526375]
[1728517467851,0.553205,60715.0,60714.0,0.11541463]
[1728517468164,0.553205,60715.0,60714.0,0.12141463]
[1728517468365,0.554205,60715.0,60714.0,0.12141463]
[1728517469260,0.4718,60715.0,60714.0,0.12141463]
[1728517469456,0.4718,60715.0,60714.0,0.16591463]
[1728517469865,0.111,60715.0,60714.0,0.16591463]
[1728517473261,0.0073,60722.0,60721.0,0.082397]
[1728517473554,0.1,60722.0,60721.0,0.21077451]
[1728517473759,0.1,60722.0,60721.0,0.25737451]
[1728517474263,0.1,60722.0,60721.0,0.34223824]
[1728517474460,0.109,60722.0,60721.0,0.22223824]
[1728517474659,0.109,60722.0,60721.0,0.34223824]
[1728517475365,0.109,60722.0,60721.0,0.44097834]
[1728517476166,0.105,60722.0,60721.0,0.44797834]
[1728517476371,0.102,60722.0,60721.0,0.45397834]
[1728517477064,0.102,60722.0,60721.0,0.35523824]
[1728517478074,0.102,60722.0,60721.0,0.38353911]
[1728517483975,0.102,60722.0,60721.0,0.55653068]
[1728517484161,0.102,60722.0,60721.0,0.43653068]
[1728517484361,0.102,60722.0,60721.0,0.38353911]
[1728517484982,0.094,60722.0,60721.0,0.38320264]
[1728517488071,0.094,60722.0,60721.0,0.26320264]
[1728517488381,0.094,60722.0,60721.0,0.38320264]
[1728517488884,0.094,60722.0,60721.0,0.74400264]
[1728517489675,0.094,60722.0,60721.0,0.38320264]
[1728517490873,0.094,60722.0,60721.0,0.21660264]
[1728517491074,0.094,60722.0,60721.0,0.33660264]
[1728517510289,0.094,60722.0,60721.0,0.21660264]
[1728517510490,0.094,60722.0,60721.0,0.33660264]
[1728517512899,0.094,60722.0,60721.0,0.43789944]
[1728517513781,0.094,60722.0,60721.0,0.43801942]
[1728517516389,0.094,60722.0,60721.0,0.43804732]
[1728517520796,0.094,60722.0,60721.0,0.23566863]
[1728517521002,0.094,60722.0,60721.0,0.43806563]
[1728517521301,0.094,60722.0,60721.0,0.35566863]
[1728517522095,0.094,60722.0,60721.0,0.43806563]
[1728517526402,0.094,60722.0,60721.0,0.31806563]
[1728517526603,0.094,60722.0,60721.0,0.43806563]
[1728517530406,0.094,60722.0,60721.0,0.33673511]
[1728517539411,0.094,60722.0,60721.0,0.25173891]
[1728517542907,0.3576,60730.0,60729.0,0.082386]
[1728517543115,0.13,60730.0,60729.0,0.21048296]
[1728517544204,0.134,60730.0,60729.0,0.21048296]
[1728517545214,0.139,60730.0,60729.0,0.21048296]
[1728517547618,0.139,60730.0,60729.0,0.57128296]
[1728517548917,0.139,60730.0,60729.0,0.59827085]
[1728517550618,0.139,60730.0,60729.0,0.7815088]
[1728517553618,0.139,60730.0,60729.0,0.3219961]
[1728517553816,0.139,60730.0,60729.0,0.6827961]
[1728517557331,0.139,60730.0,60729.0,0.3219961]
[1728517559331,0.139,60730.0,60729.0,0.42286827]
[1728517559531,0.139,60730.0,60729.0,0.22048227]
[1728517559831,0.139,60730.0,60729.0,0.34048227]
[1728517560128,0.1867,60730.0,60729.0,0.34048227]
[1728517560332,0.1867,60730.0,60729.0,0.2396101]
[1728517561329,0.1867,60730.0,60729.0,0.1196101]
[1728517561532,0.1867,60730.0,60729.0,0.2396101]
[1728517562422,0.1867,60730.0,60729.0,0.3219961]
[1728517562621,0.1867,60730.0,60729.0,0.40660896]
[1728517563227,0.1867,60730.0,60729.0,0.40659935]
[1728517565531,0.1867,60730.0,60729.0,0.50537257]
[1728517565837,0.1867,60730.0,60729.0,0.40659935]
[1728517566038,0.1867,60730.0,60729.0,0.3219961]
[1728517566241,0.1867,60730.0,60729.0,0.40663668]
[1728517567442,0.1867,60730.0,60729.0,0.50753312]
[1728517567834,0.1867,60730.0,60729.0,0.50542575]
[1728517568142,0.1867,60730.0,60729.0,0.40663668]
[1728517568535,0.1867,60730.0,60729.0,0.42304672]
[1728517568742,0.1867,60730.0,60729.0,0.32425068]
[1728517569040,0.1867,60730.0,60729.0,0.42304672]
[1728517569236,0.1867,60730.0,60729.0,0.50784937]
[1728517569828,0.1867,60730.0,60729.0,0.33868354]
[1728517570434,0.1867,60730.0,60729.0,0.2398875]
[1728517570838,0.1867,60730.0,60729.0,0.11179054]
[1728517571037,1.483085,60730.0,60729.0,0.08235766]
[1728517571239,1.4007,60730.0,60726.0,0.08235766]
[1728517571440,0.4808,60727.0,60725.0,0.08235766]
[1728517571645,0.12849,60726.0,60725.0,0.08235766]
[1728517571943,0.12849,60726.0,60724.0,0.08235766]
[1728517571944,0.082391,60725.0,60724.0,0.08235766]
[1728517572131,0.202391,60725.0,60724.0,0.08505794]
[1728517573240,0.202391,60725.0,60723.0,0.23336709]
[1728517573444,0.0444,60724.0,60723.0,0.23336709]
[1728517573633,0.1644,60724.0,60723.0,0.3183445]
[1728517573834,0.1644,60724.0,60723.0,0.23336709]
[1728517574135,0.1644,60724.0,60723.0,0.31834541]
[1728517574334,0.246793,60724.0,60723.0,0.31834541]
[1728517575238,0.246793,60724.0,60723.0,0.23836709]
[1728517575435,0.246793,60724.0,60723.0,0.24236709]
[1728517577048,0.366793,60724.0,60723.0,0.24236709]
[1728517577247,0.366793,60724.0,60723.0,0.12425418]
[1728517577434,1.460833,60724.0,60719.0,0.09882176]
[1728517577746,0.563198,60720.0,60716.0,0.0115]
[1728517577941,0.082405,60715.0,60714.0,0.14815528]
[1728517578242,0.202405,60715.0,60714.0,0.14815528]
[1728517578445,0.08241,60711.0,60710.0,0.0115]
[1728517578643,0.082418,60706.0,60703.0,0.21392]
[1728517578847,0.3608,60704.0,60703.0,0.09082018]
[1728517579044,0.4608,60704.0,60703.0,0.09082018]
[1728517579247,0.4608,60704.0,60703.0,0.17593115]
[1728517579541,0.3608,60711.0,60710.0,0.082412]
[1728517579746,0.4608,60711.0,60710.0,0.202412]
[1728517579948,0.00247124,60717.0,60710.0,0.563212]
[1728517580139,0.06847123,60717.0,60716.0,0.202404]
[1728517581339,0.06947123,60717.0,60716.0,0.213404]
[1728517581940,0.07047123,60717.0,60716.0,0.24437637]
[1728517582443,0.06947123,60717.0,60716.0,0.31137637]
[1728517582649,0.07047123,60717.0,60716.0,0.31437637]
[1728517583040,0.06947123,60717.0,60716.0,0.31137637]
[1728517583240,0.06799999,60717.0,60716.0,0.31437637]
[1728517583950,0.06699999,60717.0,60716.0,0.30337637]
[1728517584137,0.06799999,60717.0,60716.0,0.31437637]
[1728517584343,0.06799999,60717.0,60716.0,0.39646953]
[1728517584653,0.06799999,60717.0,60716.0,0.40146953]
[1728517588041,0.06799999,60717.0,60716.0,0.31937637]
[1728517589350,0.51120199,60717.0,60716.0,0.019]
[1728517589650,1.60528199,60717.0,60716.0,0.06826934]
[1728517589854,1.69978199,60717.0,60716.0,0.06826934]
[1728517590350,1.61737999,60717.0,60713.0,0.13136208]
[1728517590655,0.082406,60714.0,60713.0,0.08209316]
[1728517590852,0.202406,60714.0,60713.0,0.08209316]
[1728517591061,0.392406,60714.0,60713.0,0.08209316]
[1728517591356,1.486526,60714.0,60713.0,0.08209316]
[1728517591559,1.486526,60714.0,60713.0,0.05762247]
[1728517591854,1.486526,60714.0,60706.0,0.0115]
[1728517591855,1.40412,60714.0,60706.0,0.0115]
[1728517592054,0.082419,60705.0,60704.0,0.06569232]
[1728517592261,0.202419,60705.0,60704.0,0.06569232]
[1728517594165,0.203419,60705.0,60704.0,0.06569232]
[1728517594859,0.121,60705.0,60701.0,0.10945491]
[1728517595057,0.082423,60702.0,60701.0,0.10945491]
[1728517595252,0.192423,60702.0,60701.0,0.10945491]
[1728517595860,0.11,60702.0,60701.0,0.10945491]
[1728517596460,0.192423,60702.0,60701.0,0.10945491]
[1728517597262,0.194423,60702.0,60701.0,0.10945491]
[1728517598653,0.194423,60702.0,60701.0,0.02703091]
[1728517598854,0.082425,60701.0,60698.0,0.082428]
[1728517599161,0.082428,60698.0,60697.0,0.02951898]
[1728517599358,0.182428,60698.0,60697.0,0.02827898]
[1728517599661,0.182428,60698.0,60696.0,0.00247123]
[1728517600063,0.082429,60697.0,60696.0,0.00247123]
[1728517600259,0.12,60697.0,60690.0,0.17568277]
[1728517600563,0.082438,60691.0,60688.0,0.082441]
[1728517600860,0.192438,60691.0,60688.0,0.082441]
[1728517601057,0.08244,60690.0,60688.0,0.082441]
[1728517601364,0.20244,60690.0,60688.0,0.082441]
[1728517601555,0.082442,60688.0,60687.0,0.02790525]
[1728517601755,0.202442,60688.0,60685.0,0.082445]
[1728517602464,0.082444,60687.0,60685.0,0.082445]
[1728517602661,0.202444,60687.0,60685.0,0.082445]
[1728517604367,0.203444,60687.0,60685.0,0.082445]
[1728517604558,0.204444,60687.0,60685.0,0.087445]
[1728517606266,0.203444,60687.0,60685.0,0.082445]
[1728517606568,0.204444,60687.0,60685.0,0.087445]
[1728517607567,0.082444,60686.0,60685.0,0.005]
[1728517607759,0.202444,60686.0,60685.0,0.005]
[1728517608867,0.202444,60686.0,60685.0,0.087446]
[1728517609469,0.12,60686.0,60685.0,0.087446]
[1728517609665,0.121,60686.0,60685.0,0.087446]
[1728517610261,0.121,60686.0,60685.0,0.082446]
[1728517610468,0.122,60686.0,60685.0,0.087446]
[1728517610762,0.121,60686.0,60685.0,0.087446]
[1728517610968,0.122,60686.0,60685.0,0.087446]
[1728517622565,0.122,60686.0,60685.0,0.207446]
[1728517622966,0.122,60686.0,60685.0,0.29326712]
[1728517623371,0.122,60686.0,60685.0,0.33846712]
[1728517623578,0.03629763,60686.0,60685.0,0.33846712]
[1728517623875,0.0038,60693.0,60685.0,0.33846712]
[1728517623876,0.0038,60693.0,60692.0,0.082436]
[1728517624069,0.12,60693.0,60692.0,0.56662112]
[1728517624264,0.12,60693.0,60692.0,0.82117767]
[1728517624469,0.12,60693.0,60692.0,0.89117767]
[1728517624870,0.12,60693.0,60692.0,0.97577767]
[1728517625268,0.12,60693.0,60692.0,0.61365712]
[1728517625463,0.12,60693.0,60692.0,0.08582112]
[1728517625670,0.563235,60693.0,60692.0,0.08224103]
[1728517626074,0.563235,60693.0,60692.0,0.08324103]
[1728517626874,0.565235,60693.0,60692.0,0.08824103]
[1728517627376,0.565235,60693.0,60692.0,0.08924103]
[1728517627869,0.565235,60693.0,60692.0,0.17167703]
[1728517628071,0.4828,60693.0,60692.0,0.36167703]
[1728517628273,0.122,60693.0,60692.0,0.36167703]
[1728517628878,0.121,60693.0,60692.0,0.36067703]
[1728517629078,0.122,60693.0,60692.0,0.36067703]
[1728517629479,0.12,60693.0,60692.0,0.35467703]
[1728517629676,0.122,60693.0,60692.0,0.36067703]
[1728517630483,0.122,60693.0,60692.0,0.38788223]
[1728517630886,0.122,60693.0,60692.0,0.3056412]
[1728517631090,0.122,60693.0,60692.0,0.3066412]
[1728517632588,0.122,60693.0,60692.0,0.49256749]
[1728517633386,0.122,60693.0,60692.0,0.39379972]
[1728517633981,0.122,60693.0,60692.0,0.3056412]
[1728517635884,0.121,60693.0,60692.0,0.3056412]
[1728517636082,0.122,60693.0,60692.0,0.3056412]
[1728517636390,0.122,60693.0,60692.0,0.6664412]
[1728517636996,0.122,60693.0,60692.0,0.69221146]
[1728517637694,0.0038,60700.0,60699.0,0.082427]
[1728517637890,0.0038,60700.0,60699.0,0.46728323]
[1728517637891,0.11,60700.0,60699.0,0.46728323]
[1728517638198,0.11,60700.0,60699.0,0.39432464]
[1728517639298,0.444099,60705.0,60704.0,0.08242]
[1728517639299,0.00088,60705.0,60704.0,0.08242]
[1728517639500,0.00247128,60713.0,60712.0,0.082409]
[1728517639794,0.166893,60724.0,60718.0,0.082401]
[1728517640008,0.276893,60724.0,60722.0,0.06577931]
[1728517640190,0.276893,60724.0,60723.0,0.02576134]
[1728517640995,0.276893,60724.0,60722.0,0.06570477]
[1728517641192,0.276893,60724.0,60723.0,0.02576101]
[1728517641496,0.1945,60724.0,60723.0,0.21576101]
[1728517642010,0.2075,60724.0,60723.0,0.21576101]
[1728517642218,0.2075,60724.0,60723.0,0.19]
[1728517642610,0.1945,60724.0,60723.0,0.19]
[1728517642912,0.2035,60724.0,60723.0,0.273394]
[1728517643516,0.1945,60724.0,60723.0,0.274394]
[1728517643901,0.1945,60724.0,60723.0,0.273394]
[1728517644104,0.1945,60724.0,60723.0,0.274394]
[1728517644320,0.1945,60724.0,60723.0,0.275394]
[1728517646913,0.1945,60724.0,60723.0,0.085394]
[1728517653816,0.276893,60724.0,60723.0,0.003]
[1728517654009,0.082401,60718.0,60717.0,0.0115]
[1728517654212,0.082404,60716.0,60715.0,0.06570477]
[1728517654408,0.372404,60716.0,60715.0,0.06570477]
[1728517656418,0.380404,60716.0,60715.0,0.06570477]
[1728517656916,0.385404,60716.0,60715.0,0.06570477]
[1728517657121,1.479524,60716.0,60710.0,0.0115]
[1728517657325,0.082415,60708.0,60707.0,0.0038]
[1728517657623,0.082419,60705.0,60702.0,0.082422]
[1728517657825,0.3608,60703.0,60702.0,0.082422]
[1728517658123,0.4608,60703.0,60702.0,0.082422]
[1728517659019,0.4608,60703.0,60702.0,0.10944225]
[1728517659224,0.4618,60703.0,60702.0,0.10944225]
[1728517661120,0.4628,60703.0,60702.0,0.11444225]
[1728517661916,0.4608,60703.0,60702.0,0.10944225]
[1728517662117,0.4628,60703.0,60702.0,0.11444225]
[1728517662526,0.4618,60703.0,60702.0,0.11444225]
[1728517662726,0.4628,60703.0,60702.0,0.11444225]
[1728517664224,0.4618,60703.0,60702.0,0.10944225]
[1728517664417,0.4628,60703.0,60702.0,0.11444225]
[1728517666728,0.545221,60703.0,60702.0,0.11444225]
[1728517667227,0.4628,60703.0,60702.0,0.11444225]
[1728517667825,0.4618,60703.0,60702.0,0.10944225]
[1728517668125,0.4628,60703.0,60702.0,0.11444225]
[1728517668728,0.102,60703.0,60702.0,0.11444225]
[1728517669130,0.101,60703.0,60702.0,0.14021107]
[1728517669333,0.102,60703.0,60702.0,0.14021107]
[1728517671818,0.101,60703.0,60702.0,0.14021107]
[1728517672026,0.102,60703.0,60702.0,0.14021107]
[1728517672737,0.101,60703.0,60702.0,0.14021107]
[1728517672921,0.102,60703.0,60702.0,0.14021107]
[1728517674033,0.184421,60703.0,60702.0,0.14021107]
[1728517674832,0.102,60703.0,60702.0,0.33021107]
[1728517677233,0.101,60703.0,60702.0,0.32521107]
[1728517677540,0.102,60703.0,60702.0,0.33021107]
[1728517679834,0.102,60703.0,60702.0,0.05778907]
[1728517680034,0.184421,60703.0,60702.0,0.14021207]
[1728517680337,0.184421,60703.0,60702.0,0.05778907]
[1728517680522,0.374421,60703.0,60702.0,0.03076882]
[1728517680723,0.374421,60703.0,60702.0,0.005]
[1728517680927,0.082425,60700.0,60699.0,0.00247071]
[1728517681132,0.543225,60700.0,60699.0,0.02824247]
[1728517681333,1.637465,60700.0,60699.0,0.00247071]
[1728517681538,0.082428,60698.0,60697.0,0.02788572]
[1728517681739,0.182428,60698.0,60696.0,0.082431]
[1728517682140,0.1,60698.0,60696.0,0.082431]
[1728517682336,0.082429,60697.0,60696.0,0.082431]
[1728517682532,0.202429,60697.0,60696.0,0.10820407]
[1728517683434,0.202429,60697.0,60696.0,0.03077307]
[1728517683637,0.203429,60697.0,60696.0,0.005]
[1728517684632,0.204429,60697.0,60696.0,0.005]
[1728517690442,0.698709,60697.0,60690.0,0.09876606]
[1728517690647,0.443238,60691.0,60690.0,0.09876606]
[1728517690835,0.553238,60691.0,60690.0,0.09876606]
[1728517693345,0.554238,60691.0,60690.0,0.09876606]
[1728517693845,0.555238,60691.0,60690.0,0.09876606]
[1728517696643,0.554238,60691.0,60690.0,0.09876606]
[1728517696842,0.555238,60691.0,60690.0,0.09876606]
[1728517698148,0.554238,60691.0,60690.0,0.09876606]
[1728517698350,0.555238,60691.0,60690.0,0.09876606]
[1728517698851,0.554238,60691.0,60690.0,0.09876606]
[1728517699151,0.555238,60691.0,60690.0,0.09876606]
[1728517699651,0.554238,60691.0,60690.0,0.09876606]
[1728517700439,0.553238,60691.0,60690.0,0.09876606]
[1728517701243,0.553238,60691.0,60690.0,0.12454134]
[1728517702252,0.553238,60691.0,60690.0,0.09876606]
[1728517702557,0.553238,60691.0,60690.0,0.12454146]
[1728517704650,0.4708,60691.0,60690.0,0.32698046]
[1728517704843,0.4708,60691.0,60690.0,0.30120506]
[1728517706560,0.4708,60691.0,60690.0,0.37120506]
[1728517707552,0.11,60691.0,60690.0,0.37120506]
[1728517708147,0.11,60691.0,60690.0,0.39697831]
[1728517708551,0.11,60691.0,60690.0,0.29821225]
[1728517709351,0.11,60691.0,60690.0,0.272439]
[1728517714552,0.082439,60690.0,60689.0,0.165139]
[1728517714754,0.202439,60690.0,60689.0,0.165139]
[1728517714948,0.12,60690.0,60689.0,0.165139]
[1728517717261,0.121,60690.0,60689.0,0.35634016]
[1728517717566,0.121,60690.0,60689.0,0.35633809]
[1728517722663,0.121,60690.0,60689.0,0.71713809]
[1728517723165,0.0115,60698.0,60689.0,0.71713809]
[1728517723166,0.0035,60698.0,60697.0,0.082429]
[1728517723371,0.1035,60698.0,60697.0,0.45845658]
[1728517723663,0.1035,60698.0,60697.0,0.35965733]
[1728517724268,0.1035,60698.0,60697.0,0.38542668]
[1728517724465,0.1035,60698.0,60697.0,0.35965733]
[1728517725154,0.1095,60698.0,60697.0,0.35965733]
[1728517726266,0.1095,60698.0,60697.0,0.46357259]
[1728517726459,0.1105,60698.0,60697.0,0.46857259]
[1728517727168,0.1055,60698.0,60697.0,0.47457259]
[1728517728162,0.1055,60698.0,60697.0,0.28457259]
[1728517728462,0.1055,60698.0,60697.0,0.58841782]
[1728517728765,0.1055,60698.0,60697.0,0.69227672]
[1728517730775,0.1055,60698.0,60697.0,0.66650832]
[1728517731070,0.1055,60698.0,60697.0,0.72060403]
[1728517731977,0.1055,60698.0,60697.0,1.08140403]
[1728517732363,0.1055,60698.0,60697.0,0.89031656]
[1728517733166,0.1055,60698.0,60697.0,0.78645755]
[1728517733859,0.1055,60698.0,60697.0,0.86455942]
[1728517734065,0.03880321,60698.0,60697.0,0.89032798]
[1728517734263,0.0399,60709.0,60697.0,2.06854398]
[1728517734564,0.04,60709.0,60708.0,0.082415]
[1728517736166,0.046,60709.0,60708.0,0.083415]
[1728517737061,0.053,60709.0,60708.0,0.083415]
[1728517737568,0.053,60709.0,60708.0,0.10917996]
[1728517738365,0.0445,60716.0,60715.0,0.082405]
[1728517738564,0.1645,60716.0,60715.0,0.1162969]
[1728517738959,0.1645,60716.0,60715.0,0.28499681]
[1728517739164,0.1645,60716.0,60715.0,0.1984835]
[1728517739673,0.1645,60716.0,60715.0,0.17371854]
[1728517739874,0.1785,60716.0,60715.0,0.17371854]
[1728517740075,0.1785,60716.0,60715.0,0.19948106]
[1728517740275,0.1915,60716.0,60715.0,0.20048106]
[1728517740676,0.147,60716.0,60715.0,0.28697169]
[1728517740880,0.147,60716.0,60715.0,0.20478509]
[1728517741474,0.147,60716.0,60715.0,0.28691527]
[1728517742170,0.147,60716.0,60715.0,0.26115275]
[1728517742370,0.147,60716.0,60715.0,0.45115275]
[1728517742570,0.147,60716.0,60715.0,0.36902257]
[1728517742778,0.147,60716.0,60715.0,0.39478299]
[1728517742976,0.147,60716.0,60715.0,0.39478321]
[1728517743870,0.147,60716.0,60715.0,0.57186124]
[1728517744079,0.147,60716.0,60715.0,0.65394009]
[1728517744268,0.147,60716.0,60715.0,0.59495061]
[1728517745068,0.147,60716.0,60715.0,0.51287176]
[1728517745481,0.147,60716.0,60715.0,0.59492403]
[1728517745684,0.147,60716.0,60715.0,0.51287176]
[1728517745871,0.147,60716.0,60715.0,0.59492325]
[1728517746071,0.147,60716.0,60715.0,0.87367176]
[1728517747383,0.147,60716.0,60715.0,0.84791112]
[1728517750473,0.147,60716.0,60715.0,0.69659302]
[1728517750678,0.144,60716.0,60715.0,0.69659302]
[1728517750980,0.14,60716.0,60715.0,0.69659302]
[1728517754070,0.222404,60716.0,60715.0,0.42418802]
[1728517758684,0.14,60716.0,60715.0,0.50659302]
[1728517758879,0.14,60716.0,60715.0,0.69659302]
[1728517760191,0.07701566,60716.0,60715.0,0.69659302]
[1728517760382,0.0425,60727.0,60715.0,0.86170031]
[1728517760585,0.11,60727.0,60726.0,0.5508]
[1728517760780,0.11,60727.0,60726.0,0.57655993]
[1728517761584,0.11,60727.0,60726.0,0.65894993]
[1728517762479,0.111,60727.0,60726.0,0.70016065]
[1728517762682,0.116,60727.0,60726.0,0.70016065]
[1728517763183,0.11,60727.0,60726.0,0.70016065]
[1728517763400,0.114,60727.0,60726.0,0.70016065]
[1728517764492,0.0448,60735.0,60732.0,0.082382]
[1728517764691,0.1648,60735.0,60733.0,0.02575993]
[1728517764990,0.1648,60735.0,60734.0,0.02575993]
[1728517765488,0.12,60735.0,60734.0,0.02575993]
[1728517765881,0.125,60735.0,60734.0,0.02575993]
[1728517766387,0.129,60735.0,60734.0,0.02575993]
[1728517766691,0.129,60735.0,60734.0,0.10913893]
[1728517766896,0.129,60735.0,60734.0,0.083379]
[1728517767186,0.128,60735.0,60734.0,0.11013341]
[1728517767891,0.128,60735.0,60734.0,0.02775441]
[1728517768786,0.210378,60735.0,60734.0,0.02775441]
[1728517775304,0.210378,60735.0,60734.0,0.002]
[1728517775597,0.210378,60735.0,60734.0,0.02775519]
[1728517777495,0.210378,60735.0,60734.0,0.002]
[1728517777697,0.210378,60735.0,60734.0,0.02775537]
[1728517779307,0.210378,60735.0,60734.0,0.07704265]
[1728517780300,0.210378,60735.0,60734.0,0.05128728]
[1728517780500,0.210378,60735.0,60734.0,0.07704474]
[1728517780698,0.210378,60735.0,60734.0,0.02775746]
[1728517781001,0.210378,60735.0,60734.0,0.002]
[1728517781197,0.210378,60735.0,60734.0,0.02775746]
[1728517781705,0.210378,60735.0,60734.0,0.07704854]
[1728517781898,0.210378,60735.0,60734.0,0.02775746]
[1728517782900,0.210378,60735.0,60734.0,0.09347622]
[1728517784400,0.210378,60735.0,60734.0,0.02775565]
[1728517785409,0.082386,60729.0,60728.0,0.06576255]
[1728517785711,0.4808,60729.0,60727.0,0.12672721]
[1728517785899,0.082387,60728.0,60727.0,0.0281613]
[1728517786098,0.082387,60728.0,60726.0,0.082389]
[1728517786099,0.182387,60728.0,60726.0,0.082389]
[1728517786508,0.082389,60727.0,60726.0,0.11023527]
[1728517786709,0.192389,60727.0,60726.0,0.11023527]
[1728517787200,0.192389,60727.0,60726.0,0.19238253]
[1728517788797,0.11,60727.0,60726.0,0.11023527]
[1728517789513,0.112,60727.0,60726.0,0.11023527]
[1728517789711,0.114,60727.0,60726.0,0.11023527]
[1728517793304,0.114,60727.0,60726.0,0.19677287]
[1728517795205,0.114,60727.0,60726.0,0.11023527]
[1728517796501,0.196389,60727.0,60726.0,0.11023527]
[1728517796704,0.114,60727.0,60726.0,0.11023527]
[1728517797419,0.114,60727.0,60726.0,0.13599298]
[1728517797803,0.114,60727.0,60726.0,0.11023527]
[1728517798108,0.114,60727.0,60726.0,0.13599298]
[1728517798308,0.114,60727.0,60726.0,0.32116892]
[1728517800716,0.114,60727.0,60726.0,0.21302221]
[1728517801018,0.196389,60727.0,60726.0,0.15224564]
[1728517803517,0.196389,60727.0,60726.0,0.14017656]
[1728517805616,0.196389,60727.0,60726.0,0.14018916]
[1728517806732,0.196389,60727.0,60726.0,0.11443145]
[1728517807017,0.196389,60727.0,60726.0,0.23883083]
[1728517807320,0.196389,60727.0,60726.0,0.14018917]
[1728517808612,0.196389,60727.0,60726.0,0.22257917]
[1728517809215,0.114,60727.0,60726.0,0.22257917]
[1728517809721,0.114,60727.0,60726.0,0.32122083]
[1728517810026,0.114,60727.0,60726.0,0.22257917]
[1728517810219,0.114,60727.0,60726.0,0.19682145]
[1728517810520,0.114,60727.0,60726.0,0.22257903]
[1728517815225,0.114,60727.0,60726.0,0.32594727]
[1728517820429,0.114,60727.0,60726.0,0.30018969]
[1728517820625,0.114,60727.0,60726.0,0.32594739]
[1728517821215,0.114,60727.0,60726.0,0.41269226]
[1728517823826,0.114,60727.0,60726.0,0.32610708]
[1728517826528,0.114,60727.0,60726.0,0.22272592]
[1728517827230,0.114,60727.0,60726.0,0.32610194]
[1728517830837,0.114,60727.0,60726.0,0.30034424]
[1728517831133,0.114,60727.0,60726.0,0.32610195]
[1728517831726,0.114,60727.0,60726.0,0.32611014]
[1728517834433,0.196389,60727.0,60726.0,0.11457961]
[1728517834734,0.196389,60727.0,60726.0,0.2392204]
[1728517835332,0.196389,60727.0,60726.0,0.2392211]
[1728517835536,0.196389,60727.0,60726.0,0.14033865]
[1728517836239,0.196389,60727.0,60726.0,0.2392211]
[1728517836531,0.196389,60727.0,60726.0,0.23933479]
[1728517838133,0.196389,60727.0,60726.0,0.21357575]
[1728517838323,0.196389,60727.0,60726.0,0.23933479]
[1728517839036,0.196389,60727.0,60726.0,0.14045234]
[1728517839636,0.196389,60727.0,60726.0,0.05360531]
[1728517839834,0.196389,60727.0,60726.0,0.14046764]
[1728517841427,0.196389,60727.0,60726.0,0.1147086]
[1728517841629,0.196389,60727.0,60726.0,0.14046764]
[1728517841832,0.196389,60727.0,60726.0,0.14044226]
[1728517842639,1.771189,60727.0,60720.0,0.0115]
[1728517842841,0.557189,60727.0,60720.0,0.3608]
[1728517843031,0.4748,60727.0,60726.0,0.12]
[1728517843634,0.4748,60727.0,60726.0,0.16121572]
[1728517843834,0.4728,60727.0,60726.0,0.16121572]
[1728517844045,0.5928,60727.0,60726.0,0.04121572]
[1728517844743,0.5908,60727.0,60726.0,0.04121572]
[1728517844946,0.673189,60727.0,60726.0,0.04121572]
[1728517845338,0.675189,60727.0,60726.0,0.04121572]
[1728517845740,1.769189,60727.0,60726.0,0.04121572]
[1728517846149,1.771189,60727.0,60726.0,0.04121572]
[1728517846453,1.6888,60727.0,60719.0,0.0038]
[1728517846752,1.6888,60727.0,60715.0,0.12370303]
[1728517846753,0.12,60720.0,60716.0,0.0038]
[1728517846945,0.12,60717.0,60715.0,0.14256152]
[1728517847249,0.23,60717.0,60715.0,0.14256152]
[1728517847448,0.312403,60717.0,60715.0,0.14256152]
[1728517847838,0.3608,60716.0,60715.0,0.14256152]
[1728517848050,0.4908,60716.0,60715.0,0.11534875]
[1728517848244,1.58492,60716.0,60715.0,0.11534875]
[1728517848551,1.58492,60716.0,60715.0,0.12734875]
[1728517849139,0.98492,60716.0,60715.0,0.13734875]
[1728517849350,1.58492,60716.0,60715.0,0.12734875]